bitfinex/quotes_SOLUSD_20240822
["timestamp","ask_amount","ask_price","bid_price","bid_amount"]
[1724360676526,1.21499727,143.46,143.42,17.4305]
[1724360678404,2.60942434,143.46,143.42,17.4305]
[1724360679923,1.21499727,143.46,143.42,17.4305]
[1724360687825,1.21499727,143.46,143.42,24.4026]
[1724360688830,6.9696,143.48,143.42,24.4026]
[1724360689034,1.21475847,143.47,143.42,24.4026]
[1724360693631,1.21475847,143.47,143.43,6.972]
[1724360694220,1.21475847,143.47,143.42,24.4028]
[1724360694615,8.18485847,143.47,143.42,17.4305]
[1724360700038,6.9706,143.46,143.41,6.9728]
[1724360700222,22.2254,143.45,143.41,6.9728]
[1724360702252,1.39442707,143.44,143.39,17.4339]
[1724360702447,8.36622707,143.44,143.39,17.4339]
[1724360703543,8.36622707,143.44,143.39,24.4078]
[1724360704538,6.9718,143.44,143.39,24.4078]
[1724360706058,29.1966,143.45,143.39,24.4078]
[1724360706358,1.39442707,143.44,143.39,24.4078]
[1724360707258,29.1966,143.45,143.39,24.4078]
[1724360709538,1.21531666,143.44,143.39,24.4078]
[1724360712745,1.21531666,143.44,143.41,6.9726]
[1724360713344,1.21531666,143.44,143.42,6.9725]
[1724360713637,22.2254,143.45,143.43,6.9719]
[1724360715958,22.2254,143.45,143.42,6.9724]
[1724360718186,22.2254,143.45,143.41,24.4048]
[1724360720689,22.2254,143.45,143.42,6.9724]
[1724360723484,22.2254,143.45,143.41,24.4048]
[1724360726701,22.2254,143.45,143.4,6.9734]
[1724360734004,1.21325443,143.44,143.4,6.9734]
[1724360744322,1.21325443,143.44,143.38,17.4352]
[1724360744496,1.21325443,143.44,143.4,6.9733]
[1724360746128,1.21325443,143.44,143.38,17.4352]
[1724360746333,8.18515443,143.44,143.38,24.4093]
[1724360747229,29.94608,143.43,143.38,17.4352]
[1724360747400,1.39442707,143.42,143.35,17.439]
[1724360748589,6.1066,143.4,143.35,24.4148]
[1724360749326,1.39442707,143.39,143.35,24.4148]
[1724360749801,1.39442707,143.39,143.35,17.439]
[1724360750407,15.5856,143.38,143.33,6.9768]
[1724360750607,6.4983,143.37,143.33,6.9768]
[1724360751725,6.4983,143.37,143.33,17.4414]
[1724360751915,15.5856,143.38,143.34,0.40245826]
[1724360752114,15.5856,143.38,143.33,17.4414]
[1724360752819,15.5856,143.38,143.36,7.844242]
[1724360753119,15.5856,143.38,143.36,0.868842]
[1724360753695,15.5856,143.38,143.36,7.844142]
[1724360754305,16.79732614,143.38,143.36,7.844142]
[1724360757037,1.39442707,143.37,143.36,0.868842]
[1724360757340,16.79732614,143.38,143.36,0.868842]
[1724360760832,1.39442707,143.37,143.36,0.868842]
[1724360762097,16.79732614,143.38,143.36,0.868842]
[1724360765004,18.19175321,143.38,143.36,0.868842]
[1724360765408,16.79732614,143.38,143.36,0.868842]
[1724360768141,23.77172614,143.38,143.36,0.868842]
[1724360768342,0.25098,143.37,143.36,0.868842]
[1724360769639,16.79732614,143.38,143.36,0.868842]
[1724360776472,1.21172614,143.38,143.36,7.844142]
[1724360776761,1.21172614,143.38,143.36,0.868842]
[1724360780556,1.21172614,143.38,143.37,6.9749]
[1724360783165,1.21172614,143.38,143.36,7.844142]
[1724360790774,1.21172614,143.38,143.37,6.9749]
[1724360799969,6.6144,143.44,143.4,6.9734]
[1724360800147,1.20747131,143.44,143.41,6.9728]
[1724360800355,1.20747131,143.44,143.39,17.4347]
[1724360800967,1.20747131,143.44,143.4,6.9733]
[1724360804487,1.20747131,143.44,143.4,8.36780599]
[1724360806282,1.20747131,143.44,143.4,6.9733]
[1724360811181,1.20747131,143.44,143.41,6.9728]
[1724360817781,1.20747131,143.44,143.42,6.9725]
[1724360823304,1.20747131,143.44,143.41,24.4048]
[1724360823500,1.20747131,143.44,143.42,6.9723]
[1724360825021,1.20747131,143.44,143.41,24.4048]
[1724360826097,1.20747131,143.44,143.42,6.9724]
[1724360828596,1.20747131,143.44,143.42,6.9724]
[1724360836017,1.20747131,143.44,143.41,17.432]
[1724360838889,1.20747131,143.44,143.4,6.9734]
[1724360838890,7.45867131,143.44,143.4,6.9734]
[1724360842896,7.45867131,143.44,143.41,6.9728]
[1724360845718,7.45867131,143.44,143.4,24.4066]
[1724360846697,7.45867131,143.44,143.41,6.9729]
[1724360862625,7.45867131,143.44,143.4,17.4333]
[1724360867729,7.45867131,143.44,143.4,24.4066]
[1724360869029,7.45867131,143.44,143.41,6.973]
[1724360881642,6.2512,143.44,143.41,6.973]
[1724360884147,6.2512,143.44,143.4,24.4066]
[1724360892647,6.2512,143.44,143.41,6.9729]
[1724360902154,1.20829773,143.43,143.41,6.9729]
[1724360911931,1.20829773,143.43,143.42,8.36697065]
[1724360912347,16.1714,143.46,143.43,6.9718]
[1724360912553,16.1714,143.46,143.43,8.36599539]
[1724360912727,16.1714,143.46,143.36,43.74280371]
[1724360912728,6.9711,143.45,143.4,6.9732]
[1724360912930,16.1714,143.46,143.36,0.868842]
[1724360913131,16.1714,143.46,143.37,38.8988061]
[1724360913360,16.1714,143.46,143.38,49.0248061]
[1724360913531,16.1714,143.46,143.38,45.0]
[1724360914179,16.1714,143.46,143.42,6.9725]
[1724360915168,16.1714,143.46,143.4,17.4326]
[1724360916852,16.1714,143.46,143.41,6.9728]
[1724360928951,13.0751,143.47,143.27,16.1714]
[1724360928952,6.2986,143.34,143.27,16.1714]
[1724360929149,6.2986,143.34,143.22,35.7574765]
[1724360929150,15.43798,143.33,143.24,164.73793014]
[1724360929362,8.37182707,143.32,143.22,0.8468765]
[1724360929566,0.12549,143.31,143.23,4.03529468]
[1724360929744,0.12549,143.32,143.24,4.03529468]
[1724360930097,3.15244299,143.31,143.22,0.8468765]
[1724360930258,3.15244299,143.3,143.26,6.9802]
[1724360930568,3.15244299,143.29,143.26,6.9802]
[1724360930757,3.15244299,143.28,143.26,6.9802]
[1724360930958,22.28939,143.33,143.26,6.9802]
[1724360931255,3.15232054,143.32,143.27,6.9797]
[1724360931462,3.15232054,143.31,143.27,6.9797]
[1724360931650,3.15232054,143.3,143.27,6.9797]
[1724360931850,3.15232054,143.29,143.27,6.9797]
[1724360932169,22.28939,143.33,143.27,6.9797]
[1724360932349,3.15254784,143.32,143.27,6.9797]
[1724360932674,3.15254784,143.31,143.27,6.9797]
[1724360932853,3.15254784,143.3,143.27,6.9797]
[1724360933054,15.31249,143.33,143.27,6.9797]
[1724360933375,3.15267347,143.32,143.27,6.9797]
[1724360933542,3.15267347,143.31,143.27,6.9797]
[1724360933739,3.15267347,143.3,143.27,6.9797]
[1724360933942,15.31249,143.33,143.27,6.9797]
[1724360934260,3.15254363,143.32,143.27,6.9797]
[1724360934462,15.31249,143.33,143.27,6.9797]
[1724360934463,3.15254363,143.31,143.27,6.9797]
[1724360934777,15.31249,143.33,143.27,6.9797]
[1724360934948,3.15253942,143.32,143.27,6.9797]
[1724360935172,3.15253942,143.31,143.27,6.9797]
[1724360935368,15.31249,143.33,143.27,6.9797]
[1724360935683,3.152531,143.32,143.27,6.9797]
[1724360935853,3.152531,143.31,143.27,6.9797]
[1724360936053,15.31249,143.33,143.27,6.9797]
[1724360936354,3.15269306,143.32,143.27,6.9797]
[1724360936553,15.31249,143.33,143.27,6.9797]
[1724360936772,3.15266084,143.32,143.27,6.9797]
[1724360937078,15.31249,143.33,143.27,6.9797]
[1724360937254,3.15253521,143.32,143.27,6.9797]
[1724360937460,15.31249,143.33,143.27,6.9797]
[1724360937659,3.15253521,143.32,143.27,6.9797]
[1724360937979,15.31249,143.33,143.27,6.9797]
[1724360938574,15.31249,143.33,143.27,17.4486]
[1724360938760,0.12549,143.33,143.27,17.4486]
[1724360939071,0.25098,143.33,143.27,17.4486]
[1724360939758,0.25098,143.33,143.29,6.9786]
[1724360941490,6.2986,143.34,143.3,6.9782]
[1724360947066,0.12549,143.33,143.3,6.9782]
[1724360947269,0.25098,143.33,143.3,6.9782]
[1724360951304,6.2986,143.34,143.33,6.9769]
[1724360951493,6.2986,143.34,143.32,6.9773]
[1724360955186,6.2986,143.34,143.32,6.76763396]
[1724360955763,7.50782627,143.34,143.32,6.76763396]
[1724360960898,7.50782627,143.34,143.23,34.9077]
[1724360960899,7.50782627,143.34,143.28,17.4478]
[1724360961099,15.5762,143.32,143.28,24.4268]
[1724360961288,1.39442707,143.31,143.28,24.4268]
[1724360962106,15.5762,143.32,143.28,24.4268]
[1724360964793,15.5762,143.32,143.29,6.9787]
[1724360969314,3.15133734,143.31,143.29,6.9787]
[1724360969490,15.5762,143.32,143.29,6.9787]
[1724360969812,3.15133734,143.31,143.29,6.9787]
[1724360970013,15.5762,143.32,143.29,6.9787]
[1724360970214,3.15147135,143.31,143.29,6.9787]
[1724360970406,15.5762,143.32,143.29,6.9787]
[1724360970608,3.15147135,143.31,143.29,6.9787]
[1724360970810,15.5762,143.32,143.29,6.9787]
[1724360970980,3.15119759,143.31,143.29,6.9787]
[1724360971181,15.5762,143.32,143.29,6.9787]
[1724360971385,3.15119759,143.31,143.29,6.9787]
[1724360971587,3.15119759,143.3,143.29,6.9787]
[1724360971796,3.15119759,143.31,143.29,6.9787]
[1724360972011,3.15119759,143.3,143.29,6.9787]
[1724360972991,3.15119759,143.31,143.29,6.9787]
[1724360973191,3.15119759,143.3,143.29,6.9787]
[1724360974384,3.15030717,143.3,143.29,6.9787]
[1724360974587,15.5762,143.32,143.29,6.9787]
[1724360975995,3.15029875,143.31,143.29,6.9787]
[1724360976199,3.15029875,143.3,143.29,6.9787]
[1724360981627,1.21136974,143.31,143.29,6.9787]
[1724360981930,3.15082636,143.3,143.29,6.9787]
[1724360982122,1.21136974,143.31,143.29,6.9787]
[1724360993335,1.21136974,143.31,143.3,6.9783]
[1724360993520,0.25098,143.33,143.3,6.9783]
[1724360998512,0.25098,143.34,143.3,6.9783]
[1724360999320,1.64540707,143.34,143.3,6.9783]
[1724361013178,0.25098,143.34,143.3,6.9783]
[1724361014060,1.21159834,143.33,143.3,6.9783]
[1724361014362,0.25098,143.32,143.3,6.9783]
[1724361025262,1.64540707,143.32,143.28,17.4478]
[1724361025482,8.1785,143.3,143.25,17.4509]
[1724361025659,46.64540707,143.29,143.25,17.4509]
[1724361025868,53.62440707,143.29,143.24,6.9809]
[1724361026847,46.64540707,143.29,143.24,6.9809]
[1724361028172,46.64540707,143.29,143.25,6.9806]
[1724361028847,1.64540707,143.29,143.25,6.9806]
[1724361034279,0.25098,143.29,143.25,6.9806]
[1724361038183,1.64540707,143.29,143.26,6.9801]
[1724361038363,0.25098,143.29,143.27,6.9797]
[1724361039758,0.12549,143.28,143.27,6.9797]
[1724361041290,0.12549,143.28,143.27,6.76994812]
[1724361042084,1.33746584,143.28,143.27,6.76994812]
[1724361051492,1.33746584,143.28,143.27,6.56019504]
[1724361053776,0.12549,143.28,143.27,6.56019504]
[1724361055704,1.21213306,143.3,143.28,17.4481]
[1724361056171,15.3345,143.34,143.31,17.4445]
[1724361056375,16.54631903,143.34,143.31,17.4445]
[1724361056612,16.54631903,143.34,143.31,24.4222]
[1724361058694,0.25098,143.33,143.31,24.4222]
[1724361064404,0.25098,143.33,143.31,23.64170498]
[1724361072695,0.25098,143.33,143.31,16.66400498]
[1724361087503,1.21181903,143.34,143.31,16.66400498]
[1724361087707,1.21181903,143.34,143.33,6.9769]
[1724361087917,15.6044,143.38,143.33,6.9769]
[1724361087918,15.6044,143.38,143.34,6.9763]
[1724361089031,0.12549,143.37,143.34,6.9763]
[1724361089324,0.25098,143.37,143.34,6.9763]
[1724361108343,1.21205484,143.36,143.34,6.9763]
[1724361109820,1.21205484,143.36,143.35,6.9759]
[1724361110258,6.4181,143.4,143.36,6.9752]
[1724361111423,0.25098,143.39,143.36,6.9752]
[1724361113043,0.25098,143.39,143.37,6.9749]
[1724361115324,8.18453306,143.42,143.37,6.9749]
[1724361115545,0.25098,143.41,143.38,6.9744]
[1724361123922,1.21203306,143.42,143.39,6.9737]
[1724361124128,1.21203306,143.42,143.4,6.9734]
[1724361125632,1.21203306,143.42,143.41,6.973]
[1724361126533,6.4997,143.45,143.42,6.9725]
[1724361132659,6.4997,143.45,143.41,24.405]
[1724361132660,0.25098,143.44,143.41,24.405]
[1724361133626,6.4997,143.45,143.41,24.405]
[1724361141939,6.4997,143.45,143.42,6.9725]
[1724361147072,1.21384949,143.44,143.42,6.9725]
[1724361165469,1.21384949,143.44,143.43,6.972]
[1724361165677,6.9697,143.48,143.43,6.972]
[1724361165874,0.25098,143.47,143.43,6.972]
[1724361172375,6.9697,143.48,143.43,6.972]
[1724361172906,6.9697,143.48,143.44,6.9715]
[1724361173097,30.38173712,143.49,143.44,6.9715]
[1724361173297,0.25098,143.48,143.44,6.9715]
[1724361174910,30.25624712,143.49,143.44,6.9715]
[1724361194599,29.0422,143.49,143.44,6.9715]
[1724361198031,8.36402707,143.48,143.43,24.4017]
[1724361198266,8.48951707,143.48,143.43,24.4017]
[1724361200141,1.21473673,143.47,143.43,24.4017]
[1724361202033,8.18493673,143.47,143.43,17.4299]
[1724361202214,1.39442707,143.46,143.42,6.9724]
[1724361202406,9.5793638,143.47,143.42,6.9724]
[1724361202722,0.12549,143.46,143.42,6.9724]
[1724361204548,28.8969,143.45,143.4,17.4328]
[1724361204840,28.8969,143.45,143.4,24.4062]
[1724361205043,0.25098,143.44,143.4,24.4062]
[1724361207443,0.12549,143.44,143.41,6.9729]
[1724361207621,21.9256,143.45,143.41,6.9729]
[1724361212456,21.9256,143.45,143.4,24.4061]
[1724361212677,21.9256,143.45,143.37,24.4112]
[1724361212678,6.9721,143.43,143.37,24.4112]
[1724361212958,0.25098,143.42,143.38,6.9743]
[1724361213539,0.25098,143.43,143.38,6.9743]
[1724361216751,1.64540707,143.43,143.38,6.9743]
[1724361218767,0.25098,143.43,143.38,6.9743]
[1724361219570,0.25098,143.43,143.39,6.9739]
[1724361220473,1.21475379,143.42,143.39,6.9739]
[1724361225355,1.21475379,143.42,143.37,17.4364]
[1724361225356,22.9804,143.41,143.37,17.4364]
[1724361225651,0.12549,143.4,143.37,24.4113]
[1724361226873,0.12549,143.4,143.37,17.4364]
[1724361227066,0.25098,143.4,143.35,6.9758]
[1724361227377,0.25098,143.4,143.36,6.9753]
[1724361227575,0.12549,143.4,143.36,6.9753]
[1724361235279,0.12549,143.4,143.37,6.9749]
[1724361235986,0.12549,143.4,143.36,6.9753]
[1724361240406,0.12549,143.4,143.37,6.9748]
[1724361240884,1.21361066,143.39,143.37,6.9748]
[1724361247194,1.21361066,143.39,143.38,8.36919981]
[1724361247377,16.0073,143.41,143.38,6.9744]
[1724361251495,16.0073,143.41,143.38,6.9743]
[1724361253713,15.6097,143.45,143.4,6.9734]
[1724361254291,15.6097,143.45,143.41,6.9728]
[1724361258202,15.6097,143.45,143.42,6.9725]
[1724361274030,15.69035611,143.45,143.42,6.9725]
[1724361274225,1.21370252,143.44,143.42,6.9725]
[1724361282102,1.21370252,143.44,143.41,6.9728]
[1724361284432,17.08478318,143.45,143.41,6.9728]
[1724361286743,15.69035611,143.45,143.41,6.9728]
[1724361288131,15.69035611,143.45,143.42,18.82529065]
[1724361288312,15.69035611,143.45,143.44,6.9715]
[1724361288313,0.08065611,143.45,143.44,6.9715]
[1724361289400,7.80550171,143.46,143.44,6.9715]
[1724361291627,7.80550171,143.46,143.45,6.971]
[1724361292713,1.21330171,143.46,143.45,6.971]
[1724361303750,1.21330171,143.46,143.44,17.4285]
[1724361304126,1.21330171,143.46,143.44,24.4]
[1724361307331,29.7202,143.49,143.44,24.4]
[1724361307528,0.25098,143.48,143.44,24.4]
[1724361310827,1.64540707,143.48,143.44,24.4]
[1724361312555,0.25098,143.48,143.44,24.4]
[1724361315066,1.21206334,143.47,143.44,24.4]
[1724361317462,1.21206334,143.47,143.44,17.4285]
[1724361318762,1.39442707,143.46,143.41,17.4318]
[1724361318931,1.39442707,143.46,143.42,6.9724]
[1724361319331,1.47508318,143.46,143.42,6.9724]
[1724361319860,0.08065611,143.46,143.42,6.9724]
[1724361320032,0.33163611,143.46,143.42,6.9724]
[1724361320796,6.2568,143.45,143.41,24.4046]
[1724361321106,0.25098,143.44,143.41,24.4046]
[1724361323195,21.363,143.45,143.41,24.4046]
[1724361328809,21.363,143.45,143.42,6.9724]
[1724361332200,28.3341,143.45,143.41,17.4318]
[1724361332381,0.25098,143.44,143.41,17.4318]
[1724361334010,0.25098,143.44,143.41,24.4047]
[1724361335241,1.21343503,143.43,143.41,24.4047]
[1724361336828,1.21343503,143.43,143.42,6.9725]
[1724361344533,0.08065611,143.46,143.43,6.9718]
[1724361347005,0.08065611,143.46,143.41,17.4318]
[1724361347006,0.20614611,143.46,143.42,6.9723]
[1724361347206,0.12549,143.45,143.42,6.9723]
[1724361347402,0.25098,143.45,143.42,6.9723]
[1724361348903,6.9702,143.47,143.42,6.9723]
[1724361349110,0.25098,143.46,143.42,6.9723]
[1724361349311,0.12549,143.46,143.42,6.9723]
[1724361349615,6.9697,143.48,143.43,6.9719]
[1724361349932,0.25098,143.47,143.43,6.9719]
[1724361360525,7.22108,143.47,143.43,6.9719]
[1724361363351,7.22138,143.47,143.42,6.9722]
[1724361364454,0.08065611,143.45,143.42,6.9722]
[1724361365360,1.21209195,143.44,143.42,6.9722]
[1724361377077,0.08065611,143.45,143.42,6.9722]
[1724361380567,0.08065611,143.45,143.43,6.972]
[1724361386206,0.08065611,143.45,143.44,7.67920176]
[1724361386580,0.08065611,143.45,143.44,6.9715]
[1724361394283,28.3,143.49,143.44,6.9715]
[1724361405547,1.2119607,143.51,143.45,18.82074314]
[1724361405748,1.2119607,143.51,143.45,17.4273]
[1724361406828,8.1802607,143.51,143.47,6.9699]
[1724361408957,9.57468777,143.51,143.46,6.9704]
[1724361409133,6.9687,143.5,143.46,6.9704]
[1724361409455,1.39442707,143.49,143.46,6.9704]
[1724361409827,2.60701514,143.49,143.46,6.9704]
[1724361416776,1.21258807,143.49,143.46,6.9704]
[1724361422994,8.18168807,143.49,143.45,24.3982]
[1724361423181,21.70978,143.48,143.43,6.9716]
[1724361423487,1.39442707,143.47,143.43,6.9716]
[1724361424794,8.36452707,143.47,143.43,6.9716]
[1724361430001,1.21299491,143.46,143.43,6.9716]
[1724361431077,1.21299491,143.46,143.42,17.4307]
[1724361431078,9.57802198,143.46,143.42,24.4031]
[1724361432807,6.9711,143.45,143.41,6.9728]
[1724361433020,14.97050707,143.44,143.4,6.9733]
[1724361433309,30.84160707,143.44,143.39,24.4079]
[1724361434188,29.44718,143.44,143.39,24.4079]
[1724361435412,1.39442707,143.43,143.39,24.4079]
[1724361435592,0.25098,143.42,143.39,24.4079]
[1724361435790,6.9739,143.4,143.35,6.9755]
[1724361435994,1.39442707,143.39,143.35,6.9755]
[1724361436298,1.51991707,143.39,143.35,6.9755]
[1724361436810,1.51991707,143.39,143.36,6.9754]
[1724361439692,0.08065611,143.38,143.36,6.9754]
[1724361441531,0.08065611,143.38,143.35,24.4151]
[1724361442215,0.08065611,143.38,143.36,6.9754]
[1724361445106,0.08065611,143.38,143.37,6.9749]
[1724361450417,1.29433089,143.38,143.37,6.9749]
[1724361476156,1.29433089,143.38,143.36,6.9753]
[1724361476880,1.29433089,143.38,143.35,24.4151]
[1724361477563,2.68875796,143.38,143.35,17.4394]
[1724361478674,2.68875796,143.38,143.35,24.4153]
[1724361478885,2.68875796,143.38,143.35,17.4394]
[1724361479343,2.68875796,143.38,143.25,20.0]
[1724361479344,6.2772,143.37,143.32,17.443]
[1724361479544,0.25098,143.36,143.32,17.443]
[1724361479775,1.39442707,143.35,143.32,17.443]
[1724361480076,2.60855406,143.35,143.32,17.443]
[1724361480847,1.21412699,143.35,143.32,17.443]
[1724361482474,1.21412699,143.35,143.32,24.4202]
[1724361484364,0.12549,143.34,143.32,24.4202]
[1724361486205,6.9787,143.3,143.25,6.9806]
[1724361486475,6.9787,143.3,143.26,6.9801]
[1724361486476,0.25098,143.29,143.26,6.9801]
[1724361486847,0.12549,143.29,143.26,6.9801]
[1724361487072,1.2,143.3,143.26,6.9801]
[1724361489354,1.2,143.3,143.27,6.9795]
[1724361490264,1.2,143.3,143.28,6.9793]
[1724361491575,0.12549,143.31,143.28,6.9793]
[1724361491781,0.25098,143.31,143.28,6.9793]
[1724361494289,0.12549,143.31,143.28,6.9793]
[1724361499502,0.08065611,143.3,143.28,6.9793]
[1724361500683,0.08065611,143.3,143.29,6.9788]
[1724361514017,6.1809,143.33,143.32,6.9773]
[1724361519114,22.7323,143.36,143.32,6.9773]
[1724361519416,0.25098,143.35,143.32,6.9773]
[1724361520028,0.12549,143.35,143.33,17.4416]
[1724361520318,22.7323,143.36,143.33,17.4416]
[1724361521304,22.7323,143.36,143.34,6.9762]
[1724361522011,22.7323,143.36,143.33,17.4416]
[1724361522012,6.5349,143.36,143.35,6.9759]
[1724361522217,28.6053,143.4,143.35,6.9759]
[1724361522602,0.25098,143.39,143.35,6.9759]
[1724361523602,0.12549,143.39,143.35,17.4392]
[1724361523804,21.6317,143.4,143.37,6.9748]
[1724361524004,21.6317,143.4,143.38,6.9744]
[1724361524312,21.6317,143.4,143.37,6.9748]
[1724361525029,0.12549,143.39,143.37,6.9748]
[1724361544242,0.12549,143.39,143.37,6.89414389]
[1724361552123,21.6317,143.4,143.37,6.89414389]
[1724361560227,23.02612707,143.4,143.37,6.89414389]
[1724361560549,1.39442707,143.39,143.37,6.89414389]
[1724361563847,1.39442707,143.39,143.36,6.9753]
[1724361564055,0.25098,143.38,143.35,17.4392]
[1724361564245,0.12549,143.38,143.35,17.4392]
[1724361564959,0.12549,143.38,143.35,24.4148]
[1724361567643,1.51991707,143.38,143.35,24.4148]
[1724361567843,0.12549,143.37,143.35,24.4148]
[1724361569145,0.25098,143.38,143.35,24.4148]
[1724361574264,0.25098,143.38,143.36,6.9753]
[1724361574563,0.25098,143.39,143.36,6.9753]
[1724361575950,1.64540707,143.39,143.36,6.9753]
[1724361583149,1.64540707,143.39,143.35,17.4392]
[1724361583150,1.64540707,143.39,143.35,24.4149]
[1724361583363,46.64540707,143.39,143.35,24.4149]
[1724361585759,45.25098,143.39,143.35,24.4149]
[1724361593261,1.39442707,143.38,143.32,17.4428]
[1724361593590,7.22598,143.37,143.32,17.4428]
[1724361593770,1.39442707,143.36,143.32,17.4428]
[1724361594986,1.39442707,143.36,143.33,6.9768]
[1724361600661,0.25098,143.35,143.33,6.9768]
[1724361601161,0.25098,143.36,143.33,6.9768]
[1724361615792,6.60708,143.36,143.33,6.9768]
[1724361615998,1.39442707,143.35,143.33,6.9768]
[1724361616708,6.60708,143.36,143.33,6.9768]
[1724361617603,1.39442707,143.35,143.33,6.9768]
[1724361619312,6.60708,143.36,143.33,6.9768]
[1724361619607,8.00150707,143.36,143.33,6.9768]
[1724361620101,1.39442707,143.35,143.32,24.42]
[1724361624751,45.0,143.35,143.31,6.9777]
[1724361624911,0.25098,143.34,143.31,6.9777]
[1724361631837,0.25098,143.34,143.32,6.9773]
[1724361632338,0.25098,143.35,143.32,6.9773]
[1724361634237,45.25098,143.35,143.32,6.9773]
[1724361635015,52.22698,143.35,143.31,24.4221]
[1724361635215,45.25098,143.35,143.31,24.4221]
[1724361636153,54.42098,143.35,143.31,24.4221]
[1724361638040,54.42098,143.35,143.32,6.9773]
[1724361638419,9.42098,143.35,143.32,6.9773]
[1724361664178,0.25098,143.35,143.32,6.9773]
[1724361680062,0.12549,143.35,143.33,6.9768]
[1724361680268,31.6828,143.36,143.33,6.9768]
[1724361683288,33.07722707,143.36,143.32,6.9772]
[1724361683596,0.25098,143.35,143.32,6.9772]
[1724361714921,0.25098,143.35,143.33,6.9768]
[1724361715111,9.42098,143.35,143.33,6.9768]
[1724361716316,9.42098,143.35,143.32,6.9772]
[1724361718402,6.3561,143.36,143.33,17.4416]
[1724361719528,6.3561,143.36,143.33,24.4183]
[1724361728537,15.5261,143.36,143.34,6.9764]
[1724361732924,15.5261,143.36,143.33,24.4183]
[1724361741949,22.3408,143.39,143.33,17.4416]
[1724361742154,22.3408,143.39,143.28,25.6632]
[1724361742155,22.3408,143.39,143.36,6.975]
[1724361742464,6.3105,143.39,143.36,6.9752]
[1724361743637,6.3105,143.39,143.37,6.9749]
[1724361745761,9.17,143.42,143.37,17.4366]
[1724361747845,9.17,143.42,143.38,6.9744]
[1724361748637,21.7763,143.43,143.37,18.83128152]
[1724361749069,21.7763,143.43,143.4,6.9734]
[1724361749264,6.4022,143.43,143.39,17.4342]
[1724361749447,9.17,143.45,143.4,1.39434822]
[1724361750950,9.17,143.45,143.42,6.9725]
[1724361751971,0.12549,143.46,143.42,6.9725]
[1724361752167,9.42098,143.46,143.42,6.9725]
[1724361752652,0.25098,143.46,143.42,8.36617509]
[1724361752854,6.327,143.51,143.47,6.9699]
[1724361753044,6.327,143.51,143.47,6.97]
[1724361753440,15.497,143.51,143.47,6.97]
[1724361753860,9.17,143.49,143.47,6.97]
[1724361754172,6.327,143.51,143.45,17.4267]
[1724361754355,9.17,143.49,143.45,17.4267]
[1724361754747,9.17,143.49,143.46,6.9705]
[1724361756278,6.327,143.51,143.46,6.9705]
[1724361756442,9.17,143.49,143.46,6.9705]
[1724361763182,9.17,143.49,143.45,24.3977]
[1724361765060,0.12549,143.48,143.45,17.4267]
[1724361765262,0.25098,143.48,143.45,17.4267]
[1724361768481,9.17,143.47,143.45,17.4267]
[1724361769980,9.17,143.47,143.45,24.3977]
[1724361780887,9.17,143.47,143.45,17.4267]
[1724361782062,0.12549,143.46,143.43,6.972]
[1724361782268,9.17,143.45,143.43,6.972]
[1724361784689,0.25098,143.46,143.43,6.972]
[1724361791786,0.25098,143.46,143.44,6.9714]
[1724361791987,1.20926119,143.45,143.44,6.9714]
[1724361792294,0.12549,143.46,143.44,6.9714]
[1724361792492,9.17,143.47,143.45,6.971]
[1724361792703,10.37918889,143.47,143.45,6.971]
[1724361802991,10.37918889,143.47,143.44,17.4283]
[1724361802992,10.37918889,143.47,143.46,6.9705]
[1724361803376,1.20918889,143.47,143.46,6.9705]
[1724361807314,9.17,143.49,143.46,6.9705]
[1724361807693,10.37911818,143.49,143.46,6.9705]
[1724361845623,1.20911818,143.49,143.46,6.9705]
[1724361845821,10.37911818,143.49,143.46,6.9705]
[1724361861579,17.34831818,143.49,143.45,6.971]